[Event "WCCC U10 2019"]
[Site "Weifang"]
[Date "2019.08.25"]
[Round "5.5"]
[White "Daakshin, Arun"]
[Black "Bharadia Yash"]
[Result "1/2-1/2"]
[ECO "E48"]
[WhiteElo "1628"]
[BlackElo "1963"]
[Annotator "NA"]
[PlyCount "99"]
[EventDate "2019.08.21"]
[EventType "swiss"]
[EventCountry "CHN"]
[SourceTitle "playchess.com"]
[Source "ChessBase"]
[SourceQuality "1"]
[TimeControl "40/5400+30:1800+30"]

1. d4 {[%emt 0:00:00]} Nf6 {[%emt 0:00:00]} 2. c4 {[%emt 0:00:00]} e6 {[%emt 0:00:00]} 3. Nc3 {[%emt 0:00:00]} Bb4 {[%emt 0:00:00]} 4. e3 {[%emt 0:00:00]} O-O {[%emt 0:01:27]} 5. Bd3 {[%emt 0:00:00]} d5 {[%emt 0:00:10]} 6. cxd5 {[%emt 0:00:02]} exd5 {[%emt 0:00:45]} 7. Nge2 {[%emt 0:00:04]} c5 {[%emt 0:11:07]} 8. dxc5 {[%emt 0:00:26]} Bxc5 {[%emt 0:00:11]} 9. O-O {[%emt 0:00:39]} Nc6 {[%emt 0:00:20]} 10. a3 {[%emt 0:01:55] E48: Nimzo-Indian: Rubinstein: 5 Bd3 d5 including 6 Ne2, but excluding 6 a3} (10. Nf4 Bg4 11. Qb3 d4 12. Ne4 Bb6 13. h3 Bd7 14. Nxf6+ Qxf6 15. Nd5 Qh4 16. Nxb6 axb6 17. Qxb6 Ne5 {0-1 (52) Ivanov,J (2381)-Petkov,V (2522) Sunny Beach 2012}) 10... Be6 {[%emt 0:00:58]} 11. b4 {[%emt 0:00:29]} Bd6 {[%emt 0:01:04]} 12. f4 {[%emt 0:03:06]} Re8 $146 {[%emt 0:14:48]} ({Predecessor:} 12... Rc8 13. Bb1 Ne7 14. h3 Bb8 15. b5 Qd7 16. Ra2 a6 17. Qe1 Bf5 {0-1 (55) Kuszelansky,M-Salm,M Australia 1955}) 13. h3 {[%emt 0:01:07]} h6 {[%emt 0:10:57]} 14. Nb5 {[%emt 0:04:10]} Bb8 {[%emt 0:05:02]} 15. Nbd4 {[%emt 0:02:25]} Bd7 {[%emt 0:00:49]} 16. Rf3 {[%emt 0:04:27]} a6 {[%emt 0:06:58]} 17. Bb2 {[%emt 0:02:08]} Ba7 {[%emt 0:00:57]} 18. Kh1 {[%emt 0:01:34]} Qe7 {[%emt 0:01:38]} 19. Qb3 {[%emt 0:07:51]} Rad8 {[%emt 0:09:37]} 20. Rd1 {[%emt 0:00:59]} Rc8 {[%emt 0:13:22]} 21. Qa2 {[%emt 0:04:46]} Be6 {[%emt 0:06:33]} 22. Qa1 {[%emt 0:01:16]} Nxd4 {[%emt 0:02:56]} 23. Nxd4 {[%emt 0:00:11]} Bd7 {[%emt 0:02:12]} 24. Nf5 {[%emt 0:00:55]} Bxf5 {[%emt 0:00:10]} 25. Bxf5 {[%emt 0:00:04]} Rc6 {[%emt 0:00:41]} 26. Be5 {[%emt 0:02:22]} g6 {[%emt 0:01:59]} 27. Bb1 {[%emt 0:01:04]} Bb8 {[%emt 0:02:15]} 28. Bxf6 {[%emt 0:01:34]} Qxf6 {[%emt 0:00:24]} 29. Qxf6 {[%emt 0:00:13]} Rxf6 {[%emt 0:00:06]} 30. Rxd5 {[%emt 0:00:26]} Bxf4 {[%emt 0:00:21]} 31. Rxf4 {[%emt 0:03:24]} Rxf4 {[%emt 0:00:08]} 32. exf4 {[%emt 0:00:04]} Re1+ {[%emt 0:00:17]} 33. Kh2 {[%emt 0:00:04]} Rxb1 {[%emt 0:00:09]} 34. Rd7 {[%emt 0:00:14]} Ra1 {[%emt 0:00:22]} 35. Rxb7 {[%emt 0:00:34]} Rxa3 {[%emt 0:00:09]} 36. Ra7 {[%emt 0:00:15]} Rb3 $11 {[%emt 0:00:40]} 37. Rxa6 {[%emt 0:00:13]} Rxb4 {[%emt 0:00:07]} 38. Kg3 {[%emt 0:00:20]} Kg7 {[%emt 0:00:09]} 39. Rc6 {[%emt 0:00:09]} Rb3+ {[%emt 0:00:08]} 40. Kf2 {[%emt 0:00:14]} Rb2+ {[%emt 0:00:19]} 41. Kf3 {[%emt 0:30:08]} Rb3+ {[%emt 0:30:05]} 42. Kf2 {[%emt 0:00:04]} g5 {[%emt 0:01:19]} 43. fxg5 {[%emt 0:00:06]} hxg5 {[%emt 0:00:09]} 44. Rc4 {[%emt 0:00:27]} Kg6 {[%emt 0:00:17]} 45. h4 {[%emt 0:00:04]} gxh4 {[%emt 0:00:24]} 46. Rxh4 {[%emt 0:00:04]} f5 {[%emt 0:00:14]} 47. Rh3 {[%emt 0:00:33]} Rb2+ {[%emt 0:00:22]} 48. Kf3 {[%emt 0:00:26]} Rb3+ {[%emt 0:00:59]} 49. Kf2 {[%emt 0:00:04]} Rb2+ {[%emt 0:00:48]} 50. Kf3 {[%emt 0:00:03]} 1/2-1/2

[Event "WCCC U10 2019"]
[Site "Weifang"]
[Date "2019.08.25"]
[Round "5.6"]
[White "Woodward, Andy"]
[Black "Efimov, Leonid"]
[Result "0-1"]
[ECO "D31"]
[WhiteElo "1522"]
[BlackElo "1773"]
[Annotator "NA"]
[PlyCount "122"]
[EventDate "2019.08.21"]
[EventType "swiss"]
[EventCountry "CHN"]
[SourceTitle "playchess.com"]
[Source "ChessBase"]
[SourceQuality "1"]
[TimeControl "40/5400+30:1800+30"]

1. d4 {[%emt 0:00:00]} d5 {[%emt 0:00:00]} 2. c4 {[%emt 0:00:00]} e6 {[%emt 0:00:00]} 3. Nc3 {[%emt 0:00:00]} c6 {[%emt 0:00:17]} 4. e4 {[%emt 0:00:00]} dxe4 {[%emt 0:01:18]} 5. Nxe4 {[%emt 0:00:00]} Bb4+ {[%emt 0:00:31]} 6. Bd2 {[%emt 0:00:00]} Qxd4 {[%emt 0:01:14]} 7. Bxb4 {[%emt 0:00:00]} Qxe4+ {[%emt 0:00:27]} 8. Ne2 {[%emt 0:00:06]} Nd7 {[%emt 0:13:11]} 9. Qd6 {[%emt 0:01:44]} a5 {[%emt 0:04:43]} 10. Bc3 {[%emt 0:06:49]} Ngf6 {[%emt 0:01:34]} 11. b3 {[%emt 0:05:46]} Qf5 {[%emt 0:17:23]} 12. f3 {[%emt 0:08:57]} Qc5 {[%emt 0:02:02]} 13. Qxc5 {[%emt 0:08:03]} Nxc5 {[%emt 0:00:11]} 14. Bxf6 {[%emt 0:03:08]} gxf6 {[%emt 0:00:11]} 15. Nc3 {[%emt 0:00:10]} e5 {[%emt 0:02:28]} 16. O-O-O {[%emt 0:00:26]} f5 {[%emt 0:03:05]} 17. Bd3 {[%emt 0:05:23]} Be6 {[%emt 0:05:42]} 18. Bc2 {[%emt 0:05:38]} f6 {[%emt 0:04:52]} 19. Rhe1 {[%emt 0:01:42]} h5 {[%emt 0:02:26]} 20. Ne2 {[%emt 0:10:48]} h4 {[%emt 0:04:56]} 21. Kb2 {[%emt 0:10:50]} Ke7 {[%emt 0:02:58]} 22. a3 {[%emt 0:02:56]} Rhg8 {[%emt 0:08:12]} 23. g3 {[%emt 0:01:14]} Rh8 {[%emt 0:01:08]} 24. f4 {[%emt 0:03:08]} hxg3 {[%emt 0:02:04]} 25. hxg3 {[%emt 0:01:03]} Rh2 {[%emt 0:07:18]} 26. Kb1 {[%emt 0:04:44]} Rg8 {[%emt 0:02:18]} 27. Nc1 {[%emt 0:01:43]} e4 {[%emt 0:01:13]} 28. Rg1 {[%emt 0:01:09]} Bf7 {[%emt 0:01:24]} 29. Rde1 {[%emt 0:00:54]} Ne6 {[%emt 0:00:31]} 30. g4 {[%emt 0:02:29]} Rxc2 {[%emt 0:02:30]} 31. Kxc2 {[%emt 0:03:55]} Nd4+ {[%emt 0:00:17]} 32. Kc3 {[%emt 0:00:40]} Nf3 {[%emt 0:00:07]} 33. Ref1 {[%emt 0:00:11]} Nxg1 {[%emt 0:00:16]} 34. Rxg1 {[%emt 0:00:02]} fxg4 {[%emt 0:00:31]} 35. f5 {[%emt 0:00:20]} c5 {[%emt 0:01:49]} 36. Ne2 {[%emt 0:01:44]} Be8 {[%emt 0:01:42]} 37. Ng3 {[%emt 0:00:08]} Bc6 {[%emt 0:00:06]} 38. Rd1 {[%emt 0:01:51]} Rh8 {[%emt 0:00:47]} 39. Rh1 {[%emt 0:00:18]} Rxh1 {[%emt 0:00:20]} 40. Nxh1 {[%emt 0:00:03]} e3 {[%emt 0:00:20]} 41. Ng3 {[%emt 0:30:06]} Bf3 {[%emt 0:30:10]} 42. Kd3 {[%emt 0:00:06]} e2 {[%emt 0:00:05]} 43. Nxe2 {[%emt 0:00:46]} Bxe2+ {[%emt 0:00:06]} 44. Kxe2 {[%emt 0:00:02]} Kd6 {[%emt 0:00:05]} 45. Kf2 {[%emt 0:00:20]} Ke5 {[%emt 0:00:08]} 46. Kg3 {[%emt 0:00:06]} Kxf5 {[%emt 0:00:06]} 47. a4 {[%emt 0:00:04]} b6 {[%emt 0:00:08]} 48. Kg2 {[%emt 0:00:09]} Kf4 {[%emt 0:00:09]} 49. Kf2 {[%emt 0:00:05]} g3+ {[%emt 0:00:05]} 50. Kg2 {[%emt 0:00:04]} Kg4 {[%emt 0:00:06]} 51. Kf1 {[%emt 0:00:49]} f5 {[%emt 0:00:02]} 52. Kg1 {[%emt 0:00:08]} f4 {[%emt 0:00:04]} 53. Kf1 {[%emt 0:00:06]} f3 {[%emt 0:00:04]} 54. Kg1 {[%emt 0:00:04]} f2+ {[%emt 0:00:21]} 55. Kg2 {[%emt 0:00:04]} Kf4 {[%emt 0:00:10]} 56. b4 {[%emt 0:00:17]} axb4 {[%emt 0:00:17]} 57. a5 {[%emt 0:00:06]} bxa5 {[%emt 0:01:12]} 58. Kf1 {[%emt 0:00:07]} b3 {[%emt 0:00:08]} 59. Kg2 {[%emt 0:00:04]} b2 {[%emt 0:00:05]} 60. Kh3 {[%emt 0:00:06]} b1=Q {[%emt 0:00:27]} 61. Kh4 {[%emt 0:00:08]} Qh7# {[%emt 0:00:36]} 0-1

[Event "WCCC U10 2019"]
[Site "Weifang"]
[Date "2019.08.25"]
[Round "5.7"]
[White "Feng, Andrew"]
[Black "Zhang, Xican"]
[Result "0-1"]
[ECO "E54"]
[WhiteElo "1484"]
[BlackElo "1708"]
[Annotator "NA"]
[PlyCount "119"]
[EventDate "2019.08.21"]
[EventType "swiss"]
[EventCountry "CHN"]
[SourceTitle "playchess.com"]
[Source "ChessBase"]
[SourceQuality "1"]
[TimeControl "40/5400+30:1800+30"]

1. e4 {[%emt 0:00:00]} c6 {[%emt 0:00:00]} 2. d4 {[%emt 0:00:00]} d5 {[%emt 0:00:00]} 3. exd5 {[%emt 0:00:00]} cxd5 {[%emt 0:00:00]} 4. c4 {[%emt 0:00:00]} Nf6 {[%emt 0:00:03]} 5. Nc3 {[%emt 0:00:00]} e6 {[%emt 0:00:12]} 6. Nf3 {[%emt 0:00:03]} Bb4 {[%emt 0:00:05]} 7. Bd3 {[%emt 0:04:48]} O-O {[%emt 0:01:32]} 8. O-O {[%emt 0:02:00]} dxc4 {[%emt 0:00:32]} 9. Bxc4 {[%emt 0:00:16]} b6 {[%emt 0:00:45]} 10. a3 {[%emt 0:03:06]} Bxc3 {[%emt 0:03:40]} 11. bxc3 {[%emt 0:00:14]} h6 {[%emt 0:01:20]} 12. Qd3 {[%emt 0:04:16]} Bb7 {[%emt 0:02:32]} 13. Re1 {[%emt 0:02:29]} Nbd7 {[%emt 0:02:51]} 14. Bf4 {[%emt 0:04:36]} Rc8 {[%emt 0:03:54]} 15. Ba2 {[%emt 0:05:57]} Nc5 {[%emt 0:01:45]} 16. Qe3 {[%emt 0:09:50]} Nce4 {[%emt 0:06:08]} 17. c4 {[%emt 0:03:21]} Nd6 {[%emt 0:08:59]} 18. Bxd6 {[%emt 0:06:29]} Qxd6 {[%emt 0:00:04]} 19. Ne5 {[%emt 0:01:51]} Be4 {[%emt 0:06:19]} 20. f3 {[%emt 0:05:29]} Bh7 {[%emt 0:00:39]} 21. Rac1 {[%emt 0:03:28]} Rfd8 {[%emt 0:02:08]} 22. Red1 {[%emt 0:02:35]} h5 {[%emt 0:17:28]} 23. a4 {[%emt 0:07:28]} Qb4 {[%emt 0:11:20]} 24. Bb3 {[%emt 0:05:38]} Rd6 {[%emt 0:08:57]} 25. c5 {[%emt 0:06:18]} bxc5 {[%emt 0:00:15]} 26. dxc5 {[%emt 0:00:09]} Rxd1+ {[%emt 0:02:13]} 27. Rxd1 {[%emt 0:00:30]} Bf5 {[%emt 0:01:16]} 28. c6 {[%emt 0:03:10]} Nd5 {[%emt 0:01:28]} 29. Bxd5 {[%emt 0:02:52]} exd5 {[%emt 0:00:07]} 30. Qxa7 {[%emt 0:01:44]} Be6 {[%emt 0:00:56]} 31. Nd7 {[%emt 0:03:31]} Qd6 {[%emt 0:02:49]} 32. Rc1 {[%emt 0:03:02]} Kh7 {[%emt 0:00:35]} 33. Qb7 {[%emt 0:01:44]} Rc7 {[%emt 0:02:11]} 34. Qb1+ {[%emt 0:01:30]} Kh6 {[%emt 0:01:34]} 35. a5 {[%emt 0:02:43]} Rxc6 {[%emt 0:01:55]} 36. Rxc6 {[%emt 0:00:07]} Qxc6 {[%emt 0:00:18]} 37. Ne5 {[%emt 0:01:52]} Qc3 {[%emt 0:01:58]} 38. f4 {[%emt 0:01:43]} Qxa5 {[%emt 0:00:35]} 39. f5 {[%emt 0:00:28]} Qc5+ {[%emt 0:04:44]} 40. Kf1 {[%emt 0:01:38]} Qc3 {[%emt 0:01:02]} 41. fxe6 {[%emt 0:31:02]} Qxe5 {[%emt 0:30:05]} 42. Qc1+ {[%emt 0:00:42]} Kh7 {[%emt 0:00:31]} 43. Qc2+ {[%emt 0:00:19]} g6 {[%emt 0:00:16]} 44. exf7 {[%emt 0:00:26]} Qf6+ {[%emt 0:00:53]} 45. Ke2 {[%emt 0:00:00]} Qxf7 {[%emt 0:00:00]} 46. Ke3 {[%emt 0:00:00]} Qa7+ {[%emt 0:00:00]} 47. Kd3 {[%emt 0:00:00]} Qg7 {[%emt 0:00:00]} 48. Qc3 {[%emt 0:00:00]} Qe7 {[%emt 0:00:00]} 49. Qd4 {[%emt 0:00:00]} Qa3+ {[%emt 0:00:00]} 50. Qc3 {[%emt 0:00:00]} Qa6+ {[%emt 0:00:00]} 51. Ke3 {[%emt 0:00:00]} Qe6+ {[%emt 0:00:00]} 52. Kd2 {[%emt 0:00:00]} Qe4 {[%emt 0:00:00]} 53. Qe3 {[%emt 0:00:00]} Qxg2+ {[%emt 0:00:00]} 54. Kc3 {[%emt 0:00:00]} Qf1 {[%emt 0:00:00]} 55. Qe7+ {[%emt 0:00:00]} Kh6 {[%emt 0:00:00]} 56. Qe3+ {[%emt 0:00:00]} Kg7 {[%emt 0:00:00]} 57. Qe5+ {[%emt 0:00:00]} Qf6 {[%emt 0:00:00]} 58. Kd4 {[%emt 0:00:00]} Qxe5+ {[%emt 0:00:00]} 59. Kxe5 {[%emt 0:00:00]} Kh6 {[%emt 0:01:09]} 60. Kd4 {[%emt 0:00:08]} 0-1

[Event "WCCC U10 2019"]
[Site "Weifang"]
[Date "2019.08.25"]
[Round "5.9"]
[White "Yu, Tianxi"]
[Black "Sodbilegt, Naranbold"]
[Result "0-1"]
[ECO "A13"]
[WhiteElo "1694"]
[BlackElo "1458"]
[Annotator "NA"]
[PlyCount "130"]
[EventDate "2019.08.21"]
[EventType "swiss"]
[EventCountry "CHN"]
[SourceTitle "playchess.com"]
[Source "ChessBase"]
[SourceQuality "1"]
[TimeControl "40/5400+30:1800+30"]

1. d4 {[%emt 0:00:00]} Nf6 {[%emt 0:00:00]} 2. c4 {[%emt 0:00:00]} e6 {[%emt 0:00:00]} 3. g3 {[%emt 0:00:43]} d5 {[%emt 0:00:05]} 4. Bg2 {[%emt 0:00:04]} Be7 {[%emt 0:00:46]} 5. Nf3 {[%emt 0:00:15]} O-O {[%emt 0:02:18]} 6. O-O {[%emt 0:02:00]} c6 {[%emt 0:03:50]} 7. b3 {[%emt 0:03:07]} Nbd7 {[%emt 0:01:22]} 8. Bb2 {[%emt 0:00:49]} Bd6 {[%emt 0:03:34]} 9. Ba3 {[%emt 0:00:52]} Bxa3 {[%emt 0:06:53]} 10. Nxa3 {[%emt 0:00:03]} Qe7 {[%emt 0:03:05]} 11. Nc2 {[%emt 0:01:48]} e5 {[%emt 0:08:46]} 12. dxe5 {[%emt 0:01:57]} Nxe5 {[%emt 0:00:35]} 13. Nxe5 {[%emt 0:01:09]} Qxe5 {[%emt 0:00:36]} 14. cxd5 {[%emt 0:00:48]} Nxd5 {[%emt 0:00:58]} 15. Bxd5 {[%emt 0:06:29]} cxd5 {[%emt 0:00:36]} 16. Re1 {[%emt 0:04:26]} Bh3 {[%emt 0:01:17]} 17. Qd4 {[%emt 0:01:53]} Qe6 {[%emt 0:08:54]} 18. Ne3 {[%emt 0:02:17]} Rfd8 {[%emt 0:04:54]} 19. Rac1 {[%emt 0:04:23]} Qe4 {[%emt 0:07:07]} 20. Red1 {[%emt 0:02:39]} h6 {[%emt 0:03:50]} 21. Rc7 {[%emt 0:02:38]} b6 {[%emt 0:04:48]} 22. a4 {[%emt 0:05:16]} a6 {[%emt 0:03:28]} 23. b4 {[%emt 0:01:44]} b5 {[%emt 0:04:24]} 24. a5 {[%emt 0:01:26]} h5 {[%emt 0:01:06]} 25. Rc5 {[%emt 0:02:00]} Rac8 {[%emt 0:03:10]} 26. Rxc8 {[%emt 0:00:18]} Rxc8 {[%emt 0:00:09]} 27. f3 {[%emt 0:04:49]} Qxd4 {[%emt 0:00:46]} 28. Rxd4 {[%emt 0:02:01]} Rc1+ {[%emt 0:00:45]} 29. Kf2 {[%emt 0:01:00]} Rh1 {[%emt 0:03:33]} 30. Nxd5 {[%emt 0:01:13]} Rxh2+ {[%emt 0:00:21]} 31. Ke3 {[%emt 0:00:29]} Be6 {[%emt 0:04:05]} 32. Nc7 {[%emt 0:00:44]} Bc4 {[%emt 0:03:30]} 33. Rd2 {[%emt 0:02:12]} g5 {[%emt 0:03:10]} 34. Nxa6 {[%emt 0:01:14]} Rh1 {[%emt 0:00:47]} 35. Nc5 {[%emt 0:00:19]} Ra1 {[%emt 0:00:27]} 36. Kf2 {[%emt 0:01:26]} Kg7 {[%emt 0:00:49]} 37. a6 {[%emt 0:03:16]} Ra3 {[%emt 0:00:57]} 38. Rc2 {[%emt 0:02:54]} Ra1 {[%emt 0:01:25]} 39. e4 {[%emt 0:03:07]} Kg6 {[%emt 0:02:07]} 40. Rd2 {[%emt 0:01:08]} Kg7 {[%emt 0:00:36]} 41. Kg2 {[%emt 0:33:52]} Bf1+ {[%emt 0:30:40]} 42. Kf2 {[%emt 0:00:58]} Bc4 {[%emt 0:00:05]} 43. Rd7 {[%emt 0:01:18]} Ra2+ {[%emt 0:00:25]} 44. Ke3 {[%emt 0:02:06]} Re2+ {[%emt 0:05:14]} 45. Kd4 {[%emt 0:00:32]} h4 {[%emt 0:02:21]} 46. Kc3 {[%emt 0:03:47]} hxg3 {[%emt 0:01:20]} 47. Rd1 {[%emt 0:00:33]} g2 {[%emt 0:02:19]} 48. Rg1 {[%emt 0:00:31]} Ra2 {[%emt 0:00:46]} 49. Kd4 {[%emt 0:00:35]} Kg6 {[%emt 0:00:00]} 50. Nd3 {[%emt 0:00:00]} Rd2 {[%emt 0:00:00]} 51. Kc5 {[%emt 0:00:00]} Bxd3 {[%emt 0:00:00]} 52. a7 {[%emt 0:00:00]} Ra2 {[%emt 0:00:00]} 53. Rxg2 {[%emt 0:00:00]} Rxa7 {[%emt 0:00:00]} 54. f4 {[%emt 0:00:00]} f6 {[%emt 0:00:00]} 55. e5 {[%emt 0:00:00]} Kf5 {[%emt 0:00:00]} 56. Rg3 {[%emt 0:00:00]} Bc4 {[%emt 0:00:00]} 57. exf6 {[%emt 0:00:00]} gxf4 {[%emt 0:00:00]} 58. Rg7 {[%emt 0:05:39]} Rxg7 {[%emt 0:00:00]} 59. fxg7 {[%emt 0:01:18]} f3 {[%emt 0:00:00]} 60. g8=Q {[%emt 0:01:15]} Bxg8 {[%emt 0:00:00]} 61. Kxb5 {[%emt 0:02:52]} f2 {[%emt 0:00:00]} 62. Ka6 {[%emt 0:00:57]} f1=Q+ {[%emt 0:00:00]} 63. Ka7 {[%emt 0:00:13]} Qb5 {[%emt 0:00:00]} 64. Ka8 {[%emt 0:00:03]} Bd5+ {[%emt 0:00:00]} 65. Ka7 {[%emt 0:00:02]} Qb7# {[%emt 0:00:00]} 0-1

[Event "WCCC U10 2019"]
[Site "Weifang"]
[Date "2019.08.25"]
[Round "5.10"]
[White "Pham, Tran Gia Phuc"]
[Black "Xiong, Junyi"]
[Result "0-1"]
[ECO "E11"]
[WhiteElo "1645"]
[BlackElo "1440"]
[Annotator "NA"]
[PlyCount "84"]
[EventDate "2019.08.21"]
[EventType "swiss"]
[EventCountry "CHN"]
[SourceTitle "playchess.com"]
[Source "ChessBase"]
[SourceQuality "1"]
[TimeControl "40/5400+30:1800+30"]

1. d4 {[%emt 0:00:00]} Nf6 {[%emt 0:00:00]} 2. c4 {[%emt 0:00:00]} e6 {[%emt 0:00:00]} 3. g3 {[%emt 0:00:00]} Bb4+ {[%emt 0:03:18]} 4. Bd2 {[%emt 0:00:37]} c5 {[%emt 0:02:24]} 5. Bxb4 {[%emt 0:01:30]} cxb4 {[%emt 0:00:10]} 6. Bg2 {[%emt 0:00:34]} d5 {[%emt 0:01:27]} 7. Nd2 {[%emt 0:01:13]} O-O {[%emt 0:01:32]} 8. Ngf3 {[%emt 0:02:28]} Nc6 {[%emt 0:02:39]} 9. O-O {[%emt 0:02:10]} Ne4 {[%emt 0:01:46]} 10. e3 {[%emt 0:05:01]} f5 {[%emt 0:02:38]} 11. cxd5 {[%emt 0:02:15]} exd5 {[%emt 0:00:30]} 12. Ne5 {[%emt 0:00:10]} Be6 {[%emt 0:00:57]} 13. Nb3 {[%emt 0:01:06]} Qd6 {[%emt 0:02:19]} 14. Nd3 {[%emt 0:05:25]} b6 {[%emt 0:03:56]} 15. Rc1 {[%emt 0:05:17]} Rac8 {[%emt 0:02:50]} 16. Qe2 {[%emt 0:02:24]} Bf7 {[%emt 0:04:41]} 17. Rc2 {[%emt 0:01:13]} Rc7 {[%emt 0:00:38]} 18. Rfc1 {[%emt 0:02:02]} Rfc8 {[%emt 0:00:13]} 19. Qf3 {[%emt 0:00:10]} g6 {[%emt 0:01:28]} 20. Qf4 {[%emt 0:00:07]} Qe7 {[%emt 0:01:39]} 21. h4 {[%emt 0:03:12]} a5 {[%emt 0:09:05]} 22. Bf1 {[%emt 0:05:13]} Nd6 {[%emt 0:04:38]} 23. Qg5 {[%emt 0:08:26]} Qxg5 {[%emt 0:03:02]} 24. hxg5 {[%emt 0:00:12]} Nc4 {[%emt 0:00:29]} 25. Nf4 {[%emt 0:01:17]} a4 {[%emt 0:02:47]} 26. Nxd5 {[%emt 0:04:02]} axb3 {[%emt 0:03:16]} 27. axb3 {[%emt 0:00:03]} Bxd5 {[%emt 0:00:12]} 28. Bxc4 {[%emt 0:00:05]} Ne7 {[%emt 0:00:04]} 29. f3 {[%emt 0:04:03]} b5 {[%emt 0:00:20]} 30. e4 {[%emt 0:05:41]} Bxc4 {[%emt 0:00:36]} 31. d5 {[%emt 0:00:25]} Rc5 {[%emt 0:02:45]} 32. d6 {[%emt 0:01:37]} Nc6 {[%emt 0:00:07]} 33. bxc4 {[%emt 0:00:10]} Nd4 {[%emt 0:00:30]} 34. Rf2 {[%emt 0:00:51]} Rd8 {[%emt 0:00:13]} 35. Rd1 {[%emt 0:01:46]} Rxd6 {[%emt 0:00:11]} 36. Kg2 {[%emt 0:00:08]} bxc4 {[%emt 0:00:28]} 37. Rfd2 {[%emt 0:01:59]} c3 {[%emt 0:01:19]} 38. bxc3 {[%emt 0:00:05]} bxc3 {[%emt 0:00:05]} 39. Ra2 {[%emt 0:00:31]} c2 {[%emt 0:00:23]} 40. Rc1 {[%emt 0:03:08]} Rdc6 {[%emt 0:00:09]} 41. exf5 {[%emt 0:33:47]} gxf5 {[%emt 0:30:20]} 42. g6 {[%emt 0:04:03]} hxg6 {[%emt 0:02:26]} 0-1

[Event "WCCC U10 2019"]
[Site "Weifang"]
[Date "2019.08.27"]
[Round "6.2"]
[White "Mamedov, Edgar"]
[Black "Mayank Chakraborty"]
[Result "1/2-1/2"]
[ECO "D05"]
[WhiteElo "1714"]
[BlackElo "1731"]
[Annotator "NA"]
[PlyCount "129"]
[EventDate "2019.08.21"]
[EventType "swiss"]
[EventCountry "CHN"]
[SourceTitle "playchess.com"]
[Source "ChessBase"]
[SourceQuality "1"]
[TimeControl "40/5400+30:1800+30"]

1. d4 {[%emt 0:00:15]} Nf6 {[%emt 0:00:00]} 2. Nf3 {[%emt 0:00:08]} e6 {[%emt 0:00:05]} 3. e3 {[%emt 0:00:53]} d5 {[%emt 0:00:34]} 4. Bd3 {[%emt 0:00:18]} c5 {[%emt 0:00:14]} 5. b3 {[%emt 0:00:06]} Nc6 {[%emt 0:01:09]} 6. O-O {[%emt 0:00:52]} Bd6 {[%emt 0:01:01]} 7. Bb2 {[%emt 0:03:28]} O-O {[%emt 0:00:45]} 8. dxc5 {[%emt 0:13:35]} Bxc5 {[%emt 0:00:08]} 9. a3 {[%emt 0:00:04]} Bd6 {[%emt 0:06:21]} 10. b4 {[%emt 0:13:06]} a6 {[%emt 0:02:24]} 11. Nbd2 {[%emt 0:00:41]} e5 {[%emt 0:05:35]} 12. Be2 {[%emt 0:04:16]} Qe7 {[%emt 0:02:02]} 13. c4 {[%emt 0:01:31]} dxc4 {[%emt 0:04:43]} 14. Nxc4 {[%emt 0:00:13]} Bc7 {[%emt 0:00:05]} 15. Qc2 {[%emt 0:09:21]} Bg4 {[%emt 0:04:58]} 16. Rac1 {[%emt 0:04:26]} Rac8 {[%emt 0:02:20]} 17. Qb1 {[%emt 0:13:24]} Rfe8 {[%emt 0:06:30]} 18. Rfe1 {[%emt 0:05:32]} e4 {[%emt 0:01:34]} 19. Nd4 {[%emt 0:03:33]} Nxd4 {[%emt 0:02:33]} 20. Bxd4 {[%emt 0:00:09]} Bxe2 {[%emt 0:00:10]} 21. Rxe2 {[%emt 0:06:35]} Bxh2+ {[%emt 0:17:39]} 22. Kxh2 {[%emt 0:00:44]} Ng4+ {[%emt 0:00:06]} 23. Kh3 {[%emt 0:01:09]} Qe6 {[%emt 0:00:15]} 24. Nd2 {[%emt 0:01:58]} Nxe3+ {[%emt 0:00:12]} 25. Kh2 {[%emt 0:00:14]} Qh6+ {[%emt 0:00:17]} 26. Kg1 {[%emt 0:02:12]} Ng4 {[%emt 0:00:02]} 27. Be5 {[%emt 0:00:07]} Nxe5 {[%emt 0:02:52]} 28. Rd1 {[%emt 0:01:30]} Ng4 {[%emt 0:00:41]} 29. Nf1 {[%emt 0:00:04]} Qf4 {[%emt 0:09:12]} 30. Qb3 {[%emt 0:03:38]} Nf6 {[%emt 0:02:31]} 31. Rde1 {[%emt 0:03:37]} Rc1 {[%emt 0:02:33]} 32. Rxc1 {[%emt 0:04:28]} Qxc1 {[%emt 0:00:03]} 33. Rc2 {[%emt 0:00:24]} Qf4 {[%emt 0:00:11]} 34. Qe3 {[%emt 0:00:48]} Qb8 {[%emt 0:00:41]} 35. Qg5 {[%emt 0:01:50]} Rc8 {[%emt 0:00:37]} 36. Rd2 {[%emt 0:00:24]} Qc7 {[%emt 0:00:27]} 37. g3 {[%emt 0:01:24]} Rd8 {[%emt 0:00:31]} 38. Re2 {[%emt 0:00:29]} h6 {[%emt 0:00:28]} 39. Qf5 {[%emt 0:00:12]} Rd5 {[%emt 0:00:08]} 40. Qh3 {[%emt 0:00:24]} Rh5 {[%emt 0:00:28]} 41. Qg2 {[%emt 0:30:09]} Qc1 {[%emt 0:30:13]} 42. f3 {[%emt 0:00:00]} Qxa3 {[%emt 0:00:00]} 43. fxe4 {[%emt 0:00:00]} Qxb4 {[%emt 0:00:00]} 44. Qf3 {[%emt 0:00:00]} Re5 {[%emt 0:00:00]} 45. Nd2 {[%emt 0:00:00]} Qd4+ {[%emt 0:00:00]} 46. Kg2 {[%emt 0:00:00]} Qd7 {[%emt 0:00:00]} 47. Nc4 {[%emt 0:00:00]} Rh5 {[%emt 0:00:00]} 48. e5 {[%emt 0:00:00]} Qh3+ {[%emt 0:00:00]} 49. Kg1 {[%emt 0:00:00]} Rf5 {[%emt 0:00:00]} 50. Qg2 {[%emt 0:00:00]} Qxg2+ {[%emt 0:00:00]} 51. Kxg2 {[%emt 0:00:00]} Ng4 {[%emt 0:00:00]} 52. e6 {[%emt 0:00:00]} fxe6 {[%emt 0:00:00]} 53. Rxe6 {[%emt 0:00:00]} Rf2+ {[%emt 0:00:00]} 54. Kh3 {[%emt 0:00:00]} h5 {[%emt 0:00:00]} 55. Kh4 {[%emt 0:00:00]} Rf6 {[%emt 0:00:00]} 56. Re8+ {[%emt 0:00:00]} Kf7 {[%emt 0:00:00]} 57. Rb8 {[%emt 0:00:00]} b5 {[%emt 0:00:00]} 58. Nb6 {[%emt 0:00:00]} Ne3 {[%emt 0:00:00]} 59. Nd7 {[%emt 0:00:00]} Nf5+ {[%emt 0:00:00]} 60. Kg5 {[%emt 0:00:00]} Nxg3 {[%emt 0:00:46]} 61. Nxf6 {[%emt 0:00:00]} gxf6+ {[%emt 0:00:20]} 62. Kh4 {[%emt 0:00:00]} Nf5+ {[%emt 0:00:18]} 63. Kxh5 {[%emt 0:00:00]} Nd4 {[%emt 0:00:10]} 64. Ra8 {[%emt 0:00:00]} b4 {[%emt 0:00:24]} 65. Rxa6 {[%emt 0:00:00]} 1/2-1/2